bitfinex-derivatives/quotes_SOLF0:USTF0_20250329
["timestamp","ask_amount","ask_price","bid_price","bid_amount"]
[1743278632680,0.05781178,124.95,124.89,122.14208202]
[1743278632681,8.0085,124.92,124.89,122.14208202]
[1743278632881,16.96522129,124.96,124.89,122.14208202]
[1743278633086,265.7846,124.97,124.89,122.14208202]
[1743278633484,265.7846,124.97,124.9,8.009]
[1743278633485,8.0059,124.96,124.9,8.009]
[1743278633685,8.0059,124.96,124.91,30.06]
[1743278633882,0.05962546,124.94,124.92,0.05823713]
[1743278635584,8.06662546,124.94,124.92,0.05823713]
[1743278636185,8.0075,124.93,124.92,0.05823713]
[1743278637687,8.06662546,124.94,124.92,0.05823713]
[1743278640191,8.0075,124.93,124.92,0.05823713]
[1743278647396,17.02484675,124.94,124.87,29.9]
[1743278647592,46.86522129,124.94,124.87,29.9]
[1743278648293,8.0101,124.89,124.87,29.9]
[1743278648494,17.02301568,124.92,124.86,2.1783]
[1743278648692,29.9,124.94,124.87,0.0522323]
[1743278648693,17.017043,124.9,124.87,0.0522323]
[1743278649586,8.0107,124.88,124.87,0.0522323]
[1743278652898,8.0103,124.89,124.87,0.0522323]
[1743278653493,17.017043,124.9,124.87,0.0522323]
[1743278654894,8.0106,124.89,124.87,0.0522323]
[1743278655693,17.017043,124.9,124.87,0.0522323]
[1743278659202,8.0107,124.88,124.87,0.0522323]
[1743278659402,2.0244,124.89,124.82,37.8142]
[1743278659895,8.013,124.85,124.82,29.8]
[1743278660101,2.0244,124.89,124.81,12.237]
[1743278660102,16.96522129,124.88,124.81,34.0221]
[1743278660399,8.0136,124.84,124.8,8.0154]
[1743278660600,8.0136,124.84,124.83,0.05092602]
[1743278661201,0.05370563,124.85,124.83,0.05092602]
[1743278662205,8.06650563,124.85,124.83,0.05092602]
[1743278662900,0.05370563,124.85,124.83,0.05092602]
[1743278663097,0.05370563,124.85,124.83,29.87092602]
[1743278663597,0.05370563,124.85,124.84,8.0132]
[1743278663997,0.05370563,124.85,124.83,29.87092602]
[1743278664300,0.05370563,124.85,124.83,37.88422602]
[1743278667503,0.05370563,124.85,124.84,8.0132]
[1743278672310,0.05370563,124.85,124.84,10.1578]
[1743278672513,5.0246721,124.91,124.84,2.1446]
[1743278672713,16.96522129,124.92,124.84,2.1446]
[1743278672907,5.0246721,124.91,124.84,2.1446]
[1743278673210,8.0098,124.9,124.87,8.0111]
[1743278673411,8.0098,124.9,124.87,37.7511]
[1743278673711,8.06726215,124.9,124.87,37.8055868]
[1743278674606,0.05746215,124.9,124.87,29.7944868]
[1743278674808,8.0103,124.89,124.87,29.7944868]
[1743278675006,0.05746215,124.9,124.87,29.7944868]
[1743278675304,13.05714089,124.89,124.87,29.7944868]
[1743278675608,8.0105,124.89,124.87,29.7944868]
[1743278676000,0.05746215,124.9,124.87,29.7944868]
[1743278676200,5.04753934,124.89,124.87,0.0544868]
[1743278676399,0.05746215,124.9,124.87,0.0544868]
[1743278676598,5.0478587,124.89,124.87,0.0544868]
[1743278676806,0.05746215,124.9,124.87,0.0544868]
[1743278677006,5.0478587,124.89,124.87,0.0544868]
[1743278677211,0.05746215,124.9,124.87,0.0544868]
[1743278677410,5.04832777,124.89,124.87,0.0544868]
[1743278677610,0.05746215,124.9,124.87,0.0544868]
[1743278677812,5.04829554,124.89,124.87,0.0544868]
[1743278678012,0.05746215,124.9,124.87,0.0544868]
[1743278678210,5.04829554,124.89,124.87,0.0544868]
[1743278678510,0.05746215,124.9,124.87,0.0544868]
[1743278678711,8.0107,124.88,124.87,0.0544868]
[1743278680808,54.66522129,124.88,124.77,122.14208202]
[1743278681109,16.96522129,124.86,124.79,1.41560718]
[1743278681309,8.0132,124.85,124.78,9.43230718]
[1743278681509,8.0132,124.85,124.79,31.11608941]
[1743278681814,16.96522129,124.86,124.79,29.7]
[1743278682115,0.05086321,124.83,124.81,0.05320021]
[1743278682510,8.06516321,124.83,124.81,0.05320021]
[1743278682718,0.05086321,124.83,124.81,0.05320021]
[1743278683302,0.05086321,124.83,124.74,35.3978841]
[1743278683510,16.96522129,124.82,124.75,31.15709901]
[1743278683712,16.96522129,124.82,124.76,1.41709901]
[1743278684114,8.0162,124.8,124.76,1.41709901]
[1743278684508,0.05973947,124.79,124.77,0.05097137]
[1743278685114,8.07623947,124.79,124.77,0.05097137]
[1743278685312,0.05973947,124.79,124.77,0.05097137]
[1743278687010,8.07663947,124.79,124.77,0.05097137]
[1743278690514,8.07663947,124.79,124.77,1.46898678]
[1743278691014,8.07663947,124.79,124.77,0.05097137]
[1743278691715,8.0171,124.78,124.77,0.05097137]
[1743278698920,18.67460598,124.78,124.77,0.05097137]
[1743278702423,8.0193,124.75,124.72,37.5207]
[1743278703519,8.0193,124.75,124.72,37.57983851]
[1743278703720,8.0198,124.74,124.72,29.55913851]
[1743278704424,8.0198,124.74,124.72,0.05913851]
[1743278705924,8.0203,124.73,124.72,0.05913851]
[1743278706326,8.0226,124.7,124.67,8.0238]
[1743278706528,8.0226,124.7,124.67,29.44]
[1743278707221,8.0226,124.7,124.67,8.0239]
[1743278707527,0.05224362,124.7,124.67,37.51534946]
[1743278707920,0.05224362,124.7,124.68,8.0234]
[1743278708125,0.05224362,124.7,124.67,29.49144946]
[1743278708427,0.05224362,124.7,124.67,37.51514946]
[1743278709128,0.05224362,124.7,124.68,8.0233]
[1743278709730,0.05224362,124.7,124.67,37.51534946]
[1743278709930,8.07464362,124.7,124.67,37.51534946]
[1743278710223,10.7097496,124.7,124.67,0.05144946]
[1743278710429,8.0232,124.69,124.67,0.05144946]
[1743278711533,18.7323496,124.7,124.67,0.05144946]
[1743278711927,10.7097496,124.7,124.67,0.05144946]
[1743278712526,10.7097496,124.7,124.67,8.07534946]
[1743278712828,18.7323496,124.7,124.67,8.07534946]
[1743278713031,18.7323496,124.7,124.58,33.2395841]
[1743278713032,10.65750598,124.68,124.58,33.2395841]
[1743278713232,10.65750598,124.68,124.62,45.57378307]
[1743278713432,10.65750598,124.68,124.62,44.15100598]
[1743278713731,10.65750598,124.68,124.64,8.0258]
[1743278714332,0.05631866,124.67,124.65,0.03007906]
[1743278715833,8.08051866,124.67,124.65,0.03007906]
[1743278716432,0.05631866,124.67,124.65,0.03007906]
[1743278717834,8.08061866,124.67,124.65,0.03007906]
[1743278719137,8.08061866,124.67,124.65,8.05547906]
[1743278719436,0.05631866,124.67,124.65,37.37547906]
[1743278721037,0.05631866,124.67,124.66,8.0248]
[1743278723938,0.05631866,124.67,124.65,37.37527906]
[1743278724642,0.05631866,124.67,124.65,29.35007906]
[1743278724841,0.05631866,124.67,124.65,29.29007906]
[1743278725832,8.0248,124.66,124.65,29.29007906]
[1743278726140,8.0248,124.66,124.65,0.03007906]
[1743278726341,18.69834957,124.66,124.65,0.03007906]
[1743278730939,8.0271,124.63,124.62,29.36]
[1743278731146,8.0271,124.63,124.59,12.70144957]
[1743278731444,8.0271,124.63,124.6,30.78291792]
[1743278731744,8.0271,124.63,124.6,29.36]
[1743278732146,0.05814687,124.63,124.6,29.36]
[1743278732444,0.05814687,124.63,124.59,12.70144957]
[1743278732645,0.05814687,124.63,124.6,29.34]
[1743278733742,0.05814687,124.63,124.61,8.0275]
[1743278734236,0.05814687,124.63,124.6,29.34]
[1743278734636,0.05814687,124.63,124.54,33.2395841]
[1743278734837,0.05814687,124.63,124.58,10.67354957]
[1743278735042,0.05814687,124.63,124.61,8.028]
[1743278735345,0.05814687,124.63,124.61,37.388]
[1743278737842,0.05814687,124.63,124.62,18.70094957]
[1743278738048,10.67354957,124.73,124.66,10.67354957]
[1743278738247,10.67354957,124.73,124.67,29.38]
[1743278738448,18.69414957,124.73,124.68,8.0229]
[1743278739050,0.0590531,124.72,124.69,0.05381994]
[1743278739446,8.022,124.71,124.69,0.05381994]
[1743278739651,0.0590531,124.72,124.69,0.05381994]
[1743278741952,0.0590531,124.72,124.7,8.0219]
[1743278743352,0.0590531,124.72,124.71,8.0216]
[1743278743949,264.62,124.76,124.74,8.0195]
[1743278744156,8.0193,124.75,124.7,39.97354957]
[1743278744555,8.0193,124.75,124.71,8.0212]
[1743278744950,8.0198,124.74,124.7,39.97354957]
[1743278745254,0.05364408,124.74,124.72,0.05471495]
[1743278745649,0.05364408,124.74,124.72,8.07541495]
[1743278745850,0.05364408,124.74,124.72,0.05471495]
[1743278746155,8.0203,124.73,124.72,0.05471495]
[1743278746351,0.05364408,124.74,124.72,0.05471495]
[1743278747651,18.69384957,124.73,124.72,0.05471495]
[1743278748252,23.74927171,124.73,124.72,0.05471495]
[1743278753361,23.75418474,124.73,124.72,0.05471495]
[1743278754764,8.0228,124.7,124.67,4.1453]
[1743278754963,8.0228,124.7,124.67,33.4053]
[1743278755360,8.0219,124.71,124.67,41.4294]
[1743278755961,0.05586664,124.7,124.68,8.07658729]
[1743278756667,0.05586664,124.7,124.69,8.0229]
[1743278759562,0.05586664,124.7,124.68,18.75013686]
[1743278759868,0.05586664,124.7,124.69,29.24]
[1743278760662,8.07806664,124.7,124.69,29.24]
[1743278760860,0.05586664,124.7,124.68,0.05318729]
[1743278761667,8.0229,124.69,124.68,0.05318729]
[1743278761864,0.05586664,124.7,124.68,0.05318729]
[1743278762168,8.07846664,124.7,124.68,0.05318729]
[1743278762976,8.0229,124.69,124.68,0.05318729]
[1743278765485,18.69644957,124.69,124.68,8.729e-05]
[1743278765687,8.0271,124.63,124.6,52.28835715]
[1743278765987,10.67354957,124.66,124.61,29.3]
[1743278766287,8.027,124.63,124.62,29.3]
[1743278766588,10.67354957,124.64,124.61,29.3]
[1743278766992,10.73175616,124.64,124.59,29.3]
[1743278767488,10.73175616,124.64,124.58,33.2395841]
[1743278767689,10.73175616,124.64,124.58,62.5395841]
[1743278767885,10.67354957,124.62,124.58,62.5395841]
[1743278768090,8.0293,124.59,124.58,62.5395841]
[1743278768279,10.67354957,124.62,124.58,62.5395841]
[1743278768280,0.05645875,124.61,124.58,62.5395841]
[1743278768879,0.05645875,124.61,124.59,29.28]
[1743278769080,0.05645875,124.61,124.59,37.3092]
[1743278769690,0.05645875,124.61,124.59,29.28]
[1743278770086,0.05645875,124.61,124.59,37.309]
[1743278770287,0.05645875,124.61,124.59,29.28]
[1743278771290,0.05645875,124.61,124.6,8.0287]
[1743278772192,31.3535,124.67,124.6,10.173]
[1743278772396,266.7024,124.68,124.6,2.1443]
[1743278772592,8.0245,124.67,124.61,2.178]
[1743278772789,20.92850929,124.73,124.62,45.93030929]
[1743278772989,20.92850929,124.73,124.63,1.41786879]
[1743278772990,5.05136696,124.72,124.63,1.41786879]
[1743278773189,20.92850929,124.73,124.63,1.41786879]
[1743278773391,0.05715826,124.69,124.66,0.05953866]
[1743278773591,8.0247,124.67,124.66,0.05953866]
[1743278774989,310.83030929,124.67,124.59,29.52]
[1743278775197,310.83030929,124.67,124.58,29.52]
[1743278776097,0.06141033,124.64,124.58,29.52]
[1743278776301,8.0278,124.62,124.58,29.52]
[1743278776693,0.06066577,124.61,124.58,29.52]
[1743278776891,0.06066577,124.61,124.58,8.03]
[1743278779996,0.06066577,124.61,124.57,29.54]
[1743278780397,0.06066577,124.61,124.58,1.41897974]
[1743278780797,0.06066577,124.61,124.6,8.0287]
[1743278781000,0.06066577,124.61,124.6,37.5287]
[1743278781699,0.06066577,124.61,124.6,29.5]
[1743278782303,0.06066577,124.61,124.58,37.5297]
[1743278782696,0.06066577,124.61,124.54,4.2485]
[1743278782998,0.06066577,124.61,124.55,30.93935]
[1743278783194,8.0297,124.59,124.55,37.5516]
[1743278783400,8.0297,124.59,124.55,8.0316]
[1743278783593,0.05510904,124.58,124.55,8.0316]
[1743278783797,0.05510904,124.58,124.56,29.52]
[1743278784403,0.05510904,124.58,124.56,37.5509]
[1743278784604,0.05510904,124.58,124.56,29.52]
[1743278785302,0.05510904,124.58,124.57,8.0306]
[1743278786405,31.6648,124.66,124.56,29.52]
[1743278786702,33.8279,124.66,124.56,29.52]
[1743278787105,33.8279,124.66,124.57,1.41903262]
[1743278787402,33.8279,124.66,124.6,0.05243298]
[1743278787403,0.0516608,124.63,124.6,0.05243298]
[1743278787994,8.0277,124.62,124.6,0.05243298]
[1743278789802,8.028,124.61,124.6,0.05243298]
[1743278792104,0.0516608,124.63,124.6,0.05243298]
[1743278794402,8.0279,124.62,124.6,0.05243298]
[1743278796206,8.028,124.61,124.6,0.05243298]
[1743278796599,18.70838532,124.61,124.6,0.05243298]
[1743278796803,10.68038532,124.61,124.55,30.93742647]
[1743278797005,10.68038532,124.59,124.55,29.52]
[1743278797608,8.0309,124.57,124.55,29.52]
[1743278798009,0.05922508,124.57,124.55,29.52]
[1743278798307,0.05922508,124.57,124.54,37.5325]
[1743278798697,0.05922508,124.57,124.55,8.0319]
[1743278799909,0.05922508,124.57,124.54,29.5]
[1743278800503,0.05922508,124.57,124.56,8.0313]
[1743278804610,16.69964757,124.65,124.58,8.0294]
[1743278804611,46.11964757,124.65,124.58,8.0294]
[1743278804810,8.0284,124.61,124.58,37.4494]
[1743278805116,16.69964757,124.62,124.56,29.42]
[1743278805413,8.0303,124.58,124.55,29.42]
[1743278805612,8.0303,124.58,124.55,37.4518]
[1743278805813,0.06095068,124.58,124.55,29.47241012]
[1743278808311,0.06095068,124.58,124.57,8.0306]
[1743278808613,0.06095068,124.58,124.55,29.47241012]
[1743278808814,0.06095068,124.58,124.56,8.031]
[1743278809018,0.06095068,124.58,124.55,29.47241012]
[1743278809315,0.06095068,124.58,124.56,8.0306]
[1743278809517,0.06095068,124.58,124.55,29.47241012]
[1743278809817,0.06095068,124.58,124.57,8.0306]
[1743278816118,0.06095068,124.58,124.55,29.47241012]
[1743278816519,0.06095068,124.58,124.57,8.0306]
[1743278818916,0.06095068,124.58,124.57,18.71156659]
[1743278820224,8.0271,124.63,124.57,12.10162528]
[1743278820522,5.07940065,124.62,124.58,33.6432]
[1743278820722,8.0271,124.63,124.58,33.6432]
[1743278820923,5.07993653,124.62,124.6,8.0287]
[1743278821120,14.87746659,124.66,124.61,29.46]
[1743278821326,5.07982405,124.65,124.61,29.46]
[1743278821517,5.07982405,124.64,124.61,29.46]
[1743278821721,0.05780075,124.65,124.62,0.05857651]
[1743278821918,5.07867427,124.64,124.62,0.05857651]
[1743278822119,0.05780075,124.65,124.62,0.05857651]
[1743278822323,0.05780075,124.65,124.63,8.0264]
[1743278822521,0.05780075,124.65,124.64,29.48]
[1743278823618,0.05780075,124.65,124.64,37.5061]
[1743278824627,10.68096659,124.7,124.64,30.8985224]
[1743278824823,18.70346659,124.7,124.65,10.68096659]
[1743278825125,18.70346659,124.7,124.67,8.024]
[1743278825318,18.70346659,124.7,124.67,37.524]
[1743278825515,21.76204037,124.72,124.67,29.5]
[1743278825715,0.05150509,124.7,124.67,29.55607211]
[1743278826828,8.07430509,124.7,124.67,29.55607211]
[1743278827030,0.05150509,124.7,124.67,29.55607211]
[1743278827325,8.023,124.69,124.67,29.55607211]
[1743278828028,8.0235,124.68,124.67,29.55607211]
[1743278828229,18.70446659,124.68,124.67,0.05607211]
[1743278831425,18.75537168,124.7,124.67,0.05607211]
[1743278831626,10.73247168,124.7,124.67,0.05607211]
[1743278832021,0.05150509,124.7,124.67,29.59607211]
[1743278834526,8.0234,124.69,124.67,29.59607211]
[1743278835628,8.0235,124.68,124.67,0.05607211]
[1743278835824,29.53150509,124.7,124.59,16.66841446]
[1743278836024,16.66841446,124.68,124.6,30.92049561]
[1743278836229,8.0269,124.63,124.61,1.42049561]
[1743278836724,8.0269,124.63,124.6,29.5]
[1743278837027,8.07808441,124.63,124.61,0.05298161]
[1743278837825,8.0274,124.62,124.61,0.05298161]
[1743278838028,0.05118441,124.63,124.61,0.05298161]
[1743278839824,0.05118441,124.63,124.57,29.66]
[1743278840024,29.66,124.63,124.58,1.42167442]
[1743278840219,29.66,124.63,124.55,29.66]
[1743278840524,8.0297,124.59,124.56,1.42220453]
[1743278840725,16.66841446,124.62,124.55,29.64]
[1743278840926,8.0303,124.58,124.55,29.64]
[1743278841128,8.0303,124.58,124.57,0.05504379]
[1743278841431,0.06099697,124.6,124.57,29.71504379]
[1743278841627,0.06099697,124.6,124.57,0.05504379]
[1743278841831,16.66841446,124.59,124.57,0.05504379]
[1743278842032,18.74251446,124.59,124.57,0.05504379]
[1743278842931,8.03,124.58,124.57,0.05504379]
[1743278843330,48.76251446,124.59,124.52,33.2395841]
[1743278843531,48.76251446,124.59,124.52,30.02]
[1743278844534,0.0542808,124.57,124.54,0.02277288]
[1743278844734,8.0316,124.56,124.54,0.02277288]
[1743278844935,0.0542808,124.57,124.54,0.02277288]
[1743278846139,0.0542808,124.57,124.54,30.22277288]
[1743278847938,0.0542808,124.57,124.56,8.0313]
[1743278850941,0.0542808,124.57,124.55,8.0316]
[1743278851238,0.0542808,124.57,124.54,30.22277288]
[1743278851439,0.0542808,124.57,124.55,8.0317]
[1743278851639,0.0542808,124.57,124.54,30.22277288]
[1743278851835,0.0542808,124.57,124.54,38.25487288]
[1743278852239,0.0542808,124.57,124.54,30.22277288]
[1743278854333,0.0542808,124.57,124.56,8.0313]
[1743278855640,0.0542808,124.57,124.55,8.0316]
[1743278855842,0.0542808,124.57,124.54,30.22277288]
[1743278856141,8.0850808,124.57,124.54,30.22277288]
[1743278856341,8.0850808,124.57,124.54,38.25487288]
[1743278857645,0.0542808,124.57,124.54,0.02277288]
[1743278859245,8.0319,124.56,124.54,0.02277288]
[1743278859841,8.0851808,124.57,124.54,0.02277288]
[1743278860241,0.0542808,124.57,124.54,0.02277288]
[1743278861247,0.0542808,124.57,124.55,8.0316]
[1743278861446,0.0542808,124.57,124.54,0.02277288]
[1743278861641,8.0318,124.56,124.54,0.02277288]
[1743278862848,0.0542808,124.57,124.54,0.02277288]
[1743278865651,8.0319,124.55,124.54,0.02277288]
[1743278872866,18.72684452,124.55,124.54,0.02277288]
[1743278877166,10.69494452,124.55,124.48,8.0361]
[1743278877372,30.14,124.58,124.49,31.28422679]
[1743278877373,10.69494452,124.53,124.49,31.28422679]
[1743278877568,10.69494452,124.53,124.48,29.86]
[1743278877772,8.0342,124.52,124.48,29.86]
[1743278877968,8.0342,124.52,124.49,1.42423997]
[1743278878371,8.0875452,124.52,124.49,1.42423997]
[1743278879275,0.0533452,124.52,124.5,8.0348]
[1743278879966,8.0364,124.48,124.47,33.2395841]
[1743278880165,10.69494452,124.49,124.47,33.2395841]
[1743278880371,10.74599528,124.49,124.47,33.2395841]
[1743278880672,8.0364,124.48,124.47,33.2395841]
[1743278880872,10.74599528,124.49,124.47,33.2395841]
[1743278881271,18.78219528,124.49,124.45,122.14208202]
[1743278881577,10.69494452,124.47,124.45,122.14208202]
[1743278882074,10.74599528,124.49,124.45,122.14208202]
[1743278882273,40.54599528,124.49,124.45,122.14208202]
[1743278882474,8.0368,124.48,124.45,122.14208202]
[1743278882870,29.85105076,124.49,124.45,122.14208202]
[1743278883475,311.48035532,124.49,124.45,122.14208202]
[1743278883676,8.0377,124.46,124.45,122.14208202]
[1743278883871,46.48930456,124.46,124.44,133.48240797]
[1743278884275,8.0384,124.45,124.44,133.48240797]
[1743278884468,8.0384,124.45,124.44,117.05580797]
[1743278884672,8.04,124.45,124.43,223.25669308]
[1743278884869,8.039,124.44,124.43,223.25669308]
[1743278885074,8.039,124.44,124.37,4.288]
[1743278885075,46.53993143,124.46,124.37,4.288]
[1743278885266,29.8,124.45,124.38,1.42548208]
[1743278885473,0.06088075,124.43,124.38,1.42548208]
[1743278886076,8.10098075,124.43,124.38,9.46778208]
[1743278886272,8.10098075,124.43,124.39,1.42548208]
[1743278886576,8.10098075,124.43,124.37,12.3311]
[1743278886777,8.10098075,124.43,124.38,1.42537527]
[1743278887177,0.06088075,124.43,124.38,9.46807527]
[1743278887378,0.06088075,124.43,124.39,1.42537527]
[1743278887873,0.06088075,124.43,124.39,31.32537527]
[1743278888177,0.06088075,124.43,124.4,1.4252399]
[1743278889880,0.06088075,124.43,124.4,9.4666399]
[1743278890078,0.06088075,124.43,124.4,8.0414]
[1743278892681,0.06088075,124.43,124.41,8.0408]
[1743278893075,2.1333,124.5,124.42,31.26502285]
[1743278893280,29.86,124.51,124.43,29.86]
[1743278893480,29.86,124.51,124.44,29.86]
[1743278894086,281.74930456,124.52,124.44,29.86]
[1743278894273,0.05832672,124.49,124.48,8.0364]
[1743278894474,8.0336,124.53,124.48,8.0364]
[1743278894679,0.05479657,124.5,124.48,8.0364]
[1743278895075,0.05479657,124.5,124.48,8.08770704]
[1743278895783,0.05479657,124.5,124.49,8.0358]
[1743278897287,265.04,124.56,124.52,8.0338]
[1743278897679,265.04,124.56,124.5,29.82]
[1743278898485,0.05485718,124.54,124.52,0.05473367]
[1743278899080,0.05485718,124.54,124.52,8.08843367]
[1743278899389,0.05485718,124.54,124.52,0.05473367]
[1743278899779,0.05485718,124.54,124.52,8.08853367]
[1743278900887,0.05485718,124.54,124.52,0.05473367]
[1743278902985,8.0332,124.53,124.52,0.05473367]
[1743278903179,0.05485718,124.54,124.48,2.1536]
[1743278903489,8.0355,124.5,124.48,2.1536]
[1743278904391,8.08941548,124.5,124.48,0.06094365]
[1743278905295,0.05391548,124.5,124.48,8.09734365]
[1743278905486,0.05391548,124.5,124.48,0.06094365]
[1743278905995,0.05391548,124.5,124.49,8.0358]
[1743278906494,8.033,124.54,124.5,8.0346]
[1743278906693,294.88,124.56,124.5,8.0346]
[1743278907092,8.0332,124.54,124.5,8.0346]
[1743278907689,0.05223113,124.53,124.51,0.06175226]
[1743278908195,8.08553113,124.53,124.51,0.06175226]
[1743278908996,8.0338,124.52,124.51,0.06175226]
[1743278910698,8.0365,124.48,124.46,29.92]
[1743278910897,29.92,124.53,124.46,29.92]
[1743278911293,8.0366,124.48,124.46,29.92]
[1743278911489,8.0366,124.48,124.45,4.2334]
[1743278911696,8.0366,124.48,124.46,31.34466421]
[1743278911892,8.08838125,124.48,124.46,31.34466421]
[1743278912093,8.08838125,124.48,124.46,29.92]
[1743278912892,0.05178125,124.48,124.46,29.92]
[1743278913099,29.92,124.53,124.46,29.92]
[1743278913300,29.88,124.55,124.46,29.92]
[1743278913596,29.88,124.55,124.48,8.0364]
[1743278913796,29.88,124.55,124.49,29.9]
[1743278913998,8.0348,124.51,124.49,29.9]
[1743278914299,8.0348,124.51,124.49,29.95063492]
[1743278914600,8.08734382,124.53,124.49,29.95063492]
[1743278915194,8.08734382,124.53,124.5,8.0351]
[1743278915903,0.05374382,124.53,124.49,29.95063492]
[1743278916097,0.05374382,124.53,124.5,3.45970914]
[1743278916298,0.05374382,124.53,124.5,2.0355]
[1743278916706,8.08714382,124.53,124.5,10.07]
[1743278916901,0.05374382,124.53,124.5,2.0355]
[1743278917402,0.05374382,124.53,124.51,8.0344]
[1743278917600,0.05374382,124.53,124.52,29.86]
[1743278919001,34.0384,124.59,124.52,29.86]
[1743278919002,4.1784,124.59,124.52,29.86]
[1743278919296,5.04961232,124.58,124.52,29.86]
[1743278919502,4.1784,124.59,124.52,29.86]
[1743278920005,8.0324,124.55,124.54,0.05113612]
[1743278921802,0.05522689,124.57,124.54,0.05113612]
[1743278922104,0.05522689,124.57,124.55,29.76]
[1743278922801,8.0313,124.56,124.55,29.76]
[1743278923007,0.05522689,124.57,124.55,29.76]
[1743278924298,0.05522689,124.57,124.55,37.7915]
[1743278925008,0.05522689,124.57,124.55,29.76]
[1743278926408,0.05522689,124.57,124.55,37.7914]
[1743278928005,0.05522689,124.57,124.55,29.76]
[1743278928208,0.05522689,124.57,124.54,0.05113612]
[1743278929514,8.0282,124.61,124.54,1.47479075]
[1743278929806,11.08107378,124.63,124.54,1.47479075]
[1743278930113,11.08107378,124.63,124.55,2.1461]
[1743278930312,11.08107378,124.63,124.56,29.82]
[1743278930708,0.05996681,124.61,124.58,0.05930446]
[1743278930911,0.05996681,124.61,124.59,29.82]
[1743278931610,0.05996681,124.61,124.6,8.0287]
[1743278932511,0.05996681,124.61,124.59,37.8492]
[1743278932809,0.05996681,124.61,124.59,29.82]
[1743278933013,44.09154586,124.65,124.61,8.0275]
[1743278933215,44.09154586,124.65,124.62,29.8]
[1743278933717,52.11744586,124.65,124.62,29.8]
[1743278934211,52.16961683,124.65,124.62,29.85687483]
[1743278934913,8.07807097,124.65,124.62,29.85687483]
[1743278935314,0.05217097,124.65,124.62,29.85687483]
[1743278935718,0.05217097,124.65,124.63,8.0262]
[1743278936720,0.05217097,124.65,124.64,8.0261]
[1743278937623,0.05217097,124.65,124.62,29.85687483]
[1743278939321,0.05217097,124.65,124.63,8.0264]
[1743278939726,0.05217097,124.65,124.62,29.85687483]
[1743278940528,8.0261,124.64,124.62,29.85687483]
[1743278941129,8.0267,124.63,124.62,0.05687483]
[1743278943531,0.05217097,124.65,124.62,0.05687483]
[1743278944325,8.0262,124.64,124.62,0.05687483]
[1743278944631,0.05217097,124.65,124.63,29.6]
[1743278945524,8.0261,124.64,124.62,0.05687483]
[1743278945722,0.05217097,124.65,124.62,0.05687483]
[1743278946127,0.05217097,124.65,124.62,8.08397483]
[1743278946325,0.05217097,124.65,124.62,0.05687483]
[1743278948733,8.07817097,124.65,124.62,8.08397483]
[1743278949030,0.05217097,124.65,124.62,29.71687483]
[1743278949635,0.05217097,124.65,124.63,2.0684]
[1743278950338,11.08107378,124.7,124.63,2.0684]
[1743278950833,11.08107378,124.7,124.64,1.42085769]
[1743278951044,11.08107378,124.7,124.65,29.68]
[1743278951536,0.05104364,124.69,124.66,0.05456626]
[1743278952136,8.0242,124.67,124.66,0.05456626]
[1743278954636,8.0258,124.65,124.61,31.08206632]
[1743278954936,29.68,124.68,124.61,29.66]
[1743278955338,29.68,124.68,124.61,37.6877]
[1743278955733,8.0259,124.65,124.61,37.6877]
[1743278955938,0.05876252,124.66,124.63,0.05671031]
[1743278956639,8.0255,124.65,124.63,0.05671031]
[1743278957033,0.05876252,124.66,124.63,0.05671031]
[1743278957240,8.0261,124.64,124.63,0.05671031]
[1743278959038,0.05876252,124.66,124.63,29.97671031]
[1743278959941,0.05876252,124.66,124.65,8.0255]
[1743278960643,44.09154586,124.69,124.63,31.98271031]
[1743278960844,44.09154586,124.69,124.65,16.72930456]
[1743278961143,44.09154586,124.69,124.66,30.06]
[1743278961638,316.85214586,124.73,124.66,30.06]
[1743278961840,316.85214586,124.73,124.66,30.12114041]
[1743278962036,0.05704034,124.71,124.66,30.12114041]
[1743278963444,0.05704034,124.71,124.66,38.14564041]
[1743278963932,0.05704034,124.71,124.66,30.12114041]
[1743278964133,0.05704034,124.71,124.68,8.0231]
[1743278964336,0.05704034,124.71,124.69,30.02]
[1743278964743,0.05704034,124.71,124.69,30.08105912]
[1743278966643,0.05704034,124.71,124.69,38.10355912]
[1743278967141,0.05704034,124.71,124.69,30.08105912]
[1743278967649,0.05704034,124.71,124.7,8.0222]
[1743278969347,0.05704034,124.71,124.69,38.10365912]
[1743278969547,0.05704034,124.71,124.69,30.08105912]